bitfinex/quotes_ETHUSD_20250319
["timestamp","ask_amount","ask_price","bid_price","bid_amount"]
[1742417568008,4.03910895,2036.6,2036.4,5.67048]
[1742417568316,5.06955267,2036.6,2036.3,4.91074]
[1742417568474,4.03910895,2036.4,2036.3,4.91074]
[1742417569098,4.03910895,2036.4,2036.3,10.97074]
[1742417570476,4.03910895,2036.4,2036.3,10.97071]
[1742417571125,4.0931869,2036.4,2036.3,6.06]
[1742417571328,4.50250559,2036.4,2036.3,6.06]
[1742417573493,9.41312559,2036.4,2036.3,6.06]
[1742417574080,4.50250559,2036.4,2036.3,6.06]
[1742417574621,9.41312559,2036.4,2036.3,6.06]
[1742417576806,10.22372559,2036.4,2036.3,6.06]
[1742417579830,13.22372559,2036.4,2036.3,6.06]
[1742417580005,13.16964764,2036.4,2036.3,6.06]
[1742417580208,13.22366327,2036.4,2036.3,6.06]
[1742417580702,4.91137,2036.1,2035.9,6.06]
[1742417580909,4.03910895,2036.0,2035.9,6.06]
[1742417581108,4.09297079,2036.0,2035.9,6.06]
[1742417582797,4.09297079,2036.0,2035.9,10.97183]
[1742417585034,4.09297079,2036.0,2035.9,6.06]
[1742417585596,13.94411382,2036.0,2035.9,6.06]
[1742417585794,17.74231382,2036.0,2035.9,6.06]
[1742417586007,3.0,2035.9,2035.4,6.8855]
[1742417586240,4.03910895,2035.5,2035.4,6.8855]
[1742417586603,4.09240825,2035.5,2035.4,6.8855]
[1742417587015,4.09240825,2035.5,2035.4,6.06]
[1742417587223,10.47278808,2035.5,2035.4,6.06]
[1742417588261,5.55999808,2035.5,2035.4,6.06]
[1742417588548,4.09240825,2035.5,2035.4,11.79623]
[1742417588756,4.09240825,2035.5,2035.4,6.8832]
[1742417588913,4.09240825,2035.5,2035.4,11.79623]
[1742417589117,4.09240825,2035.5,2035.4,6.8832]
[1742417589818,4.09240825,2035.5,2035.4,6.06]
[1742417592148,9.00519825,2035.5,2035.4,6.06]
[1742417592328,4.09240825,2035.5,2035.4,6.06]
[1742417592528,9.94252237,2035.5,2035.4,6.06]
[1742417592926,12.94252237,2035.5,2035.4,6.06]
[1742417593131,4.91328,2035.3,2035.2,0.005]
[1742417593447,8.95238895,2035.3,2035.2,0.005]
[1742417593635,9.0056805,2035.3,2035.2,0.005]
[1742417593838,10.49128796,2035.3,2035.2,0.005]
[1742417594149,0.05329155,2035.3,2035.2,4.91852]
[1742417594352,4.03910895,2035.4,2035.3,5.74028]
[1742417596465,4.03910895,2035.6,2035.4,4.9128]
[1742417597548,4.03910895,2035.6,2035.3,5.7402]
[1742417597865,4.03910895,2035.4,2035.2,4.9184]
[1742417598448,4.03910895,2035.4,2035.2,10.9784]
[1742417599042,4.03910895,2035.4,2035.2,6.065]
[1742417599241,10.33871685,2035.4,2035.2,6.065]
[1742417599972,4.91328,2035.3,2035.2,6.065]
[1742417600270,11.12331685,2035.4,2035.2,6.065]
[1742417600636,5.42560685,2035.4,2035.2,6.065]
[1742417601166,0.05288165,2035.3,2035.2,6.065]
[1742417601579,0.05288165,2035.3,2035.2,10.97852]
[1742417601784,0.05288165,2035.3,2035.2,11.75472]
[1742417604897,4.03910895,2035.6,2035.4,4.91297]
[1742417605068,4.03910895,2035.4,2035.3,4.91327]
[1742417608079,4.03910895,2035.4,2035.2,10.97849]
[1742417608284,4.03910895,2035.4,2035.2,6.065]
[1742417608954,4.03910895,2035.4,2035.3,4.91328]
[1742417610712,4.03910895,2035.6,2035.4,4.91299]
[1742417610864,5.0534895,2035.6,2035.4,4.91299]
[1742417611256,5.0534895,2035.6,2035.3,5.66748]
[1742417611468,5.0534895,2035.6,2035.3,10.58062]
[1742417613190,5.0534895,2035.6,2035.3,5.66734]
[1742417613367,9.9661195,2035.6,2035.3,5.66734]
[1742417613693,4.03910895,2035.4,2035.2,10.9785]
[1742417613864,4.03910895,2035.4,2035.2,6.065]
[1742417614991,4.03910895,2035.4,2035.2,10.97842]
[1742417615161,4.03910895,2035.9,2035.8,4.91206]
[1742417615371,4.53306425,2035.9,2035.7,5.71454]
[1742417615570,7.53306425,2035.9,2035.8,6.06]
[1742417615975,7.58612145,2035.9,2035.8,6.06]
[1742417617412,4.58612145,2035.9,2035.8,6.06]
[1742417617612,4.09216615,2035.9,2035.8,6.06]
[1742417618905,4.09216615,2035.9,2035.8,10.97207]
[1742417619279,4.09216615,2035.9,2035.8,11.75797]
[1742417620308,0.0530572,2035.9,2035.8,11.75797]
[1742417620475,4.03910895,2036.2,2036.0,4.91154]
[1742417620676,0.05145708,2036.1,2036.0,10.97154]
[1742417620895,4.03910895,2036.2,2036.0,10.97154]
[1742417621116,0.05154169,2036.1,2036.0,10.97154]
[1742417621325,4.03910895,2036.2,2036.0,10.97154]
[1742417621529,0.05154169,2036.1,2036.0,10.97154]
[1742417621830,4.03910895,2036.2,2036.0,10.97154]
[1742417622024,0.05154169,2036.1,2036.0,10.97154]
[1742417622528,4.03910895,2036.2,2036.1,4.91135]
[1742417623031,4.03910895,2036.2,2036.0,10.97147]
[1742417623627,4.03910895,2036.2,2036.0,15.88294]
[1742417623830,4.03910895,2036.2,2036.0,10.97147]
[1742417624727,4.03910895,2036.2,2036.0,6.06]
[1742417625028,8.95030895,2036.2,2036.0,6.06]
[1742417625723,10.41554785,2036.2,2036.0,6.06]
[1742417625936,4.91135,2036.1,2036.0,6.06]
[1742417626432,4.03910895,2036.1,2036.0,6.06]
[1742417626738,9.71045895,2036.1,2036.0,6.06]
[1742417627848,9.71045895,2036.1,2035.9,6.06]
[1742417628005,11.31914874,2036.1,2035.9,6.06]
[1742417628206,16.23067874,2036.1,2035.9,6.06]
[1742417628509,4.91159,2036.0,2035.9,6.06]
[1742417628710,6.40779874,2036.1,2035.9,6.06]
[1742417628908,11.31914874,2036.1,2035.9,6.06]
[1742417629450,16.23067874,2036.1,2035.9,6.06]
[1742417629950,11.31914874,2036.1,2035.9,6.06]
[1742417630248,5.64779874,2036.1,2035.9,10.97163]
[1742417630431,4.03910895,2036.1,2035.9,11.72773]
[1742417630905,0.05161579,2036.0,2035.9,11.72773]
[1742417631105,0.05161579,2036.0,2035.9,16.63941]
[1742417632940,0.05161579,2036.0,2035.9,11.72773]
[1742417637125,0.05161579,2036.0,2035.9,18.666935]
[1742417637329,4.03910895,2036.4,2036.0,0.8315]
[1742417637626,4.03910895,2036.4,2036.2,9.82182]
[1742417638383,4.03910895,2036.4,2036.2,4.91087]
[1742417639794,4.03910895,2036.4,2036.2,9.82184]
[1742417640089,4.03910895,2036.4,2036.2,4.91087]
[1742417640290,9.78003895,2036.4,2036.0,5.74298]
[1742417640495,4.03910895,2036.2,2036.0,4.91148]
[1742417640699,4.03910895,2036.2,2036.0,9.82293]
[1742417641056,4.03910895,2036.2,2035.9,10.97161]
[1742417641471,4.03910895,2036.2,2036.0,4.91147]
[1742417642505,4.03910895,2036.2,2036.0,6.06]
[1742417642855,8.95024895,2036.2,2036.0,6.06]
[1742417643059,4.91135,2036.1,2036.0,6.06]
[1742417643566,5.67705,2036.1,2036.0,6.06]
[1742417645201,6.22705,2036.1,2036.0,6.06]
[1742417645367,5.67705,2036.1,2036.0,6.06]
[1742417646071,5.72682643,2036.1,2036.0,6.06]
[1742417646266,7.83253766,2036.1,2036.0,6.06]
[1742417646671,10.83253766,2036.1,2036.0,6.06]
[1742417647117,11.19917018,2036.1,2036.0,6.06]
[1742417647461,5.92118766,2036.1,2036.0,6.06]
[1742417647660,7.85458538,2036.1,2036.0,6.06]
[1742417647876,12.76593538,2036.1,2036.0,6.06]
[1742417648211,12.76593538,2036.1,2035.9,6.06]
[1742417648872,4.91159,2036.0,2035.9,6.06]
[1742417649286,4.96123543,2036.0,2035.9,6.06]
[1742417649489,6.97307739,2036.0,2035.9,6.06]
[1742417650403,0.04964543,2036.0,2035.9,10.97183]
[1742417650560,4.03910895,2036.2,2035.9,10.97183]
[1742417650761,4.03910895,2036.0,2035.9,6.06]
[1742417651001,9.00034438,2036.0,2035.9,6.06]
[1742417651202,13.81935333,2036.0,2035.9,6.06]
[1742417651653,16.66173566,2036.0,2035.9,6.06]
[1742417652304,12.62262671,2036.0,2035.9,6.06]
[1742417652536,7.71103671,2036.0,2035.9,6.06]
[1742417652851,0.04964543,2036.0,2035.9,10.97183]
[1742417653942,4.08875438,2036.0,2035.9,10.97183]
[1742417655481,4.08875438,2036.0,2035.9,6.06]
[1742417659550,9.00034438,2036.0,2035.9,6.06]
[1742417660043,4.08875438,2036.0,2035.9,6.06]
[1742417663148,9.00034438,2036.0,2035.9,6.06]
[1742417665155,11.17341882,2036.0,2035.9,6.06]
[1742417665536,15.21252777,2036.0,2035.9,6.06]
[1742417665741,15.21252777,2036.0,2035.4,6.06]
[1742417665742,4.91268,2035.6,2035.4,6.06]
[1742417665967,8.95170895,2035.6,2035.4,6.06]
[1742417666261,0.04931544,2035.5,2035.4,6.06]
[1742417666972,0.04931544,2035.5,2035.4,10.97303]
[1742417667185,0.04931544,2035.5,2035.4,6.06]
[1742417668863,4.96210544,2035.5,2035.4,6.06]
[1742417673484,6.90912088,2035.5,2035.4,6.06]
[1742417673765,1.99633088,2035.5,2035.4,6.06]
[1742417674066,0.04931544,2035.5,2035.4,6.06]
[1742417674462,0.04931544,2035.5,2035.4,10.97303]
[1742417675169,0.0493036,2035.5,2035.4,10.97303]
[1742417675369,4.03910895,2035.7,2035.4,10.97303]
[1742417675666,0.04933943,2035.6,2035.4,10.97303]
[1742417676041,0.04933943,2035.6,2035.4,10.97284]
[1742417676247,0.04933943,2035.6,2035.5,4.91279]
[1742417677580,0.04933943,2035.6,2035.5,10.97279]
[1742417680672,0.04933943,2035.6,2035.5,13.425053]
[1742417681060,4.03910895,2035.9,2035.7,4.91215]
[1742417681260,0.04929472,2035.8,2035.7,9.8243]
[1742417683089,0.04929472,2035.8,2035.7,10.6563]
[1742417683585,0.04929472,2035.8,2035.7,16.7163]
[1742417685453,0.04929472,2035.8,2035.7,11.80415]
[1742417687184,0.45813509,2035.8,2035.7,6.06]
[1742417687552,0.45813509,2035.8,2035.7,10.97231]
[1742417687752,0.45813509,2035.8,2035.7,6.06]
[1742417689294,5.41892218,2035.8,2035.7,6.06]
[1742417689459,5.37020509,2035.8,2035.7,6.06]
[1742417689659,6.13140509,2035.8,2035.7,6.06]
[1742417689859,6.68140509,2035.8,2035.7,6.06]
[1742417691507,10.69036618,2035.8,2035.7,6.06]
[1742417692379,4.91278,2035.6,2035.2,6.065]
[1742417692694,4.03910895,2035.4,2035.2,6.065]
[1742417693077,0.04923561,2035.3,2035.2,6.065]
[1742417694504,0.04923561,2035.3,2035.2,10.97852]
[1742417695004,0.04923561,2035.3,2035.2,6.065]
[1742417696400,0.04923561,2035.3,2035.2,10.97852]
[1742417696697,4.03910895,2035.4,2035.2,10.97852]
[1742417696860,0.04900076,2035.3,2035.2,10.97852]
[1742417697194,0.04900076,2035.3,2035.2,6.065]
[1742417697360,0.04900076,2035.3,2035.2,13.9514978]
[1742417697565,4.03910895,2035.5,2035.3,4.91327]
[1742417697762,0.04903661,2035.4,2035.3,4.91327]
[1742417698194,0.04903661,2035.4,2035.3,10.97327]
[1742417698972,0.04903661,2035.4,2035.3,6.06]
[1742417700673,0.04903661,2035.4,2035.3,12.644176]
[1742417700873,11.95150895,2035.7,2035.3,12.644176]
[1742417701074,0.04903355,2035.4,2035.3,17.557336]
[1742417701374,0.04910373,2035.4,2035.3,12.644056]
[1742417702171,0.04910373,2035.4,2035.3,6.06]
[1742417703094,4.96213373,2035.4,2035.3,6.06]
[1742417704893,4.96213373,2035.4,2035.2,0.005]
[1742417705206,8.95238895,2035.3,2035.2,0.005]
[1742417705501,9.00120988,2035.3,2035.2,0.005]
[1742417706819,10.5743291,2035.3,2035.2,0.005]
[1742417710531,9.00120988,2035.3,2035.2,0.005]
[1742417711742,9.76220988,2035.3,2035.2,0.005]
[1742417712598,14.35131883,2035.3,2035.2,0.005]
[1742417712798,17.35131883,2035.3,2035.2,0.005]
[1742417718706,5.67476,2035.1,2035.0,0.074288]
[1742417718937,4.91472,2034.7,2034.2,6.1815771]
[1742417719121,8.95479895,2034.3,2034.2,6.1815771]
[1742417719437,9.00288634,2034.3,2034.2,6.1815771]
[1742417720240,10.84365124,2034.3,2034.2,6.1815771]
[1742417721926,15.62265124,2034.3,2034.2,6.1815771]
[1742417722137,17.00455124,2034.3,2034.2,0.1215771]
[1742417722941,20.00455124,2034.3,2034.2,0.1215771]
[1742417723534,9.22853,2034.2,2034.1,0.01]
[1742417723730,14.21506635,2034.2,2034.1,0.01]
[1742417723935,14.26299674,2034.2,2034.1,0.01]
[1742417726859,0.04793039,2034.2,2034.1,0.01]
[1742417727221,4.96386039,2034.2,2034.1,0.01]
[1742417727919,0.04793039,2034.2,2034.1,0.01]
[1742417728320,0.04793039,2034.2,2034.1,5.75407]
[1742417728529,0.04793039,2034.2,2034.1,0.01]
[1742417728834,4.96386039,2034.2,2034.1,0.01]
[1742417731955,8.24865477,2034.2,2034.1,0.01]
[1742417732159,11.24865477,2034.2,2034.1,0.01]
[1742417732854,12.3607617,2034.2,2034.1,0.01]
[1742417733054,13.1242617,2034.2,2034.1,0.01]
[1742417733967,11.79865477,2034.2,2034.1,0.01]
[1742417735846,12.3607617,2034.2,2034.1,0.01]
[1742417736247,13.1715617,2034.2,2034.1,0.01]
[1742417737484,7.91642,2034.0,2033.9,0.0907014]
[1742417737776,20.2248552,2034.0,2033.9,0.0907014]
[1742417738749,19.4151552,2034.0,2033.9,0.0907014]
[1742417739965,18.8651552,2034.0,2033.9,0.0907014]
[1742417744264,19.4151552,2034.0,2033.9,0.0907014]
[1742417744467,20.2210552,2034.0,2033.9,0.0907014]
[1742417744933,20.78316213,2034.0,2033.9,0.0907014]
[1742417748518,20.79525265,2034.0,2033.9,0.0907014]
[1742417748715,14.09724572,2034.0,2033.9,0.0907014]
[1742417749012,16.79452755,2034.0,2033.9,0.0907014]
[1742417749219,11.87810755,2034.0,2033.9,0.0907014]
[1742417749515,16.79452755,2034.0,2033.9,0.0907014]
[1742417749721,4.09810755,2034.0,2033.9,0.0907014]
[1742417749887,0.0589986,2034.0,2033.9,5.0073614]
[1742417750226,13.87123895,2034.2,2034.0,0.7678]
[1742417750387,8.95506895,2034.2,2034.0,0.7678]
[1742417751223,4.03910895,2034.2,2034.0,0.7678]
[1742417751393,0.04634959,2034.1,2034.0,5.68412]
[1742417751718,4.03910895,2034.2,2034.0,5.68412]
[1742417751887,0.04634959,2034.1,2034.0,12.81318814]
[1742417752088,30.04410895,2034.4,2034.1,4.91611]
[1742417752301,0.0499243,2034.3,2034.1,9.83214]
[1742417752506,0.0499243,2034.3,2034.2,5.68683]
[1742417752890,0.0499243,2034.3,2034.2,13.52002981]
[1742417753095,0.0499243,2034.3,2034.2,13.54502981]
[1742417753294,4.03910895,2034.4,2034.2,8.62909981]
[1742417753501,0.04663381,2034.3,2034.2,6.8559]
[1742417755982,0.04663381,2034.3,2034.2,11.77183]
[1742417757938,4.03910895,2034.6,2034.5,4.91521]
[1742417758235,4.03910895,2034.6,2034.5,0.7871]
[1742417759142,31.04671847,2035.0,2034.5,0.7871]
[1742417759143,26.39470135,2035.0,2034.5,6.8471]
[1742417759290,0.7825,2035.4,2035.0,4.914]
[1742417759490,4.03910895,2035.1,2035.0,6.06]
[1742417760444,8.95286895,2035.1,2035.0,6.06]
[1742417761650,8.95271895,2035.2,2035.0,6.06]
[1742417762412,4.91376,2035.1,2035.0,6.06]
[1742417763110,0.56210693,2035.6,2035.0,7.4726]
[1742417763323,4.03910895,2035.5,2035.4,5.71952]
[1742417763700,4.03910895,2035.5,2035.4,11.77952]
[1742417763954,4.03910895,2035.5,2035.4,6.8666]
[1742417765302,4.03910895,2035.5,2035.4,11.77963]
[1742417766544,4.03910895,2035.5,2035.4,6.8666]
[1742417766840,4.93426785,2035.5,2035.4,6.06]
[1742417767024,9.84705785,2035.5,2035.4,6.06]
[1742417767848,12.84705785,2035.5,2035.4,6.06]
[1742417768052,18.17305785,2035.5,2035.4,6.06]
[1742417768569,19.32784436,2035.5,2035.4,5.44453125]
[1742417768861,4.91424,2034.9,2034.8,5.44453125]
[1742417769065,4.91424,2034.9,2034.4,4.91532]
[1742417769066,4.91486,2034.7,2034.4,5.44453125]
[1742417769223,4.03910895,2034.5,2034.4,5.44453125]
[1742417772426,8.95431895,2034.5,2034.4,5.44453125]
[1742417773339,4.03910895,2034.5,2034.4,5.44453125]
[1742417773541,4.03910895,2034.5,2034.4,10.35998125]
[1742417774187,4.03910895,2034.5,2034.4,5.44453125]
[1742417774475,4.03910895,2034.7,2034.5,4.9151]
[1742417774826,4.03910895,2034.7,2034.5,9.83013]
[1742417775041,4.03910895,2034.7,2034.5,4.91503]
[1742417775242,4.03910895,2034.7,2034.4,12.67415538]
[1742417775989,4.03910895,2034.7,2034.4,17.58946538]
[1742417776223,4.03910895,2034.7,2034.4,12.67408538]
[1742417776496,4.03910895,2034.5,2034.4,11.14654125]
[1742417778690,4.03910895,2034.7,2034.5,4.91512]
[1742417779093,4.03910895,2034.7,2034.5,4.91505]
[1742417779394,11.95336895,2034.9,2034.6,4.91488]
[1742417779558,19.03214184,2034.9,2034.5,4.91505]
[1742417779895,4.03910895,2034.7,2034.5,4.91505]
[1742417780458,4.03910895,2035.0,2034.8,4.91446]
[1742417781256,4.03910895,2035.0,2034.9,4.91424]
[1742417781804,4.9132,2035.4,2034.9,11.12529125]
[1742417782002,7.03910895,2035.3,2035.0,4.91392]
[1742417782698,7.03910895,2035.3,2035.0,9.82784]
[1742417782867,4.03910895,2035.3,2035.0,4.91392]
[1742417783064,4.03910895,2035.1,2034.9,12.10834125]
[1742417783874,4.03910895,2035.1,2034.9,6.21123125]
[1742417784107,4.914,2035.0,2034.9,5.44453125]
[1742417785309,13.86702895,2035.1,2034.9,5.44453125]
[1742417785507,8.95305895,2035.1,2034.9,5.44453125]
[1742417785708,8.95303895,2035.1,2034.9,5.44453125]
[1742417785875,4.914,2035.0,2034.9,5.44453125]
[1742417786323,4.914,2035.0,2034.8,5.44453125]
[1742417786626,4.91424,2034.9,2034.8,5.44453125]
[1742417786824,9.73744895,2034.9,2034.8,5.44453125]
[1742417787031,4.91468,2034.8,2034.6,5.44453125]
[1742417787196,4.03910895,2034.7,2034.6,5.44453125]
[1742417787399,8.95382895,2034.7,2034.6,5.44453125]
[1742417788089,10.41904985,2034.7,2034.6,5.44453125]
[1742417789125,10.41904985,2034.7,2034.5,5.44453125]
[1742417789326,4.91497,2034.6,2034.5,5.44453125]
[1742417790225,8.81310895,2034.7,2034.5,5.44453125]
[1742417790429,4.774,2034.7,2034.6,4.91497]
[1742417790723,7.03910895,2034.7,2034.6,4.91497]
[1742417792035,7.03910895,2034.7,2034.5,11.16256125]
[1742417792505,4.03910895,2034.7,2034.6,4.91497]
[1742417792903,4.03910895,2034.9,2034.8,4.91448]
[1742417793133,4.03910895,2034.9,2034.7,4.91463]
[1742417793723,4.03910895,2034.9,2034.5,11.16252125]
[1742417793929,4.03910895,2034.7,2034.6,4.9149]
[1742417794113,4.03910895,2034.7,2034.5,11.16252125]
[1742417794310,4.03910895,2034.7,2034.5,5.44453125]
[1742417794516,0.8953619,2034.6,2034.5,5.44453125]
[1742417794916,5.8103319,2034.6,2034.5,5.44453125]
[1742417795646,0.8953619,2034.6,2034.5,5.44453125]
[1742417795838,8.95383895,2034.7,2034.5,5.44453125]
[1742417796044,4.91497,2034.6,2034.5,5.44453125]
[1742417796447,4.03910895,2034.7,2034.5,5.44453125]
[1742417796604,8.95386895,2034.7,2034.5,5.44453125]
[1742417797144,4.03910895,2034.7,2034.5,5.44453125]
[1742417797457,5.01501285,2034.7,2034.5,5.44453125]
[1742417798035,9.92977285,2034.7,2034.4,10.35985125]
[1742417798231,5.01501285,2034.7,2034.4,10.35985125]
[1742417798421,9.92976285,2034.7,2034.4,10.35985125]
[1742417800207,4.03910895,2034.7,2034.6,4.91497]
[1742417801250,4.03910895,2034.7,2034.5,4.91519]
[1742417801567,4.03910895,2034.7,2034.4,10.35986125]
[1742417801726,4.03910895,2034.5,2034.4,15.27521125]
[1742417801911,4.03910895,2034.5,2034.4,10.35986125]
[1742417803445,4.93449284,2034.5,2034.2,5.44453125]
[1742417803666,4.03910895,2034.3,2034.2,5.44453125]
[1742417805121,8.95479895,2034.3,2034.2,5.44453125]
[1742417806368,4.03910895,2034.3,2034.2,10.36046125]
[1742417806516,4.03910895,2034.3,2034.2,11.15256125]
[1742417806719,7.03910895,2034.5,2034.3,4.91545]
[1742417807036,4.03910895,2034.5,2034.4,5.67048]
[1742417807556,1.74217817,2035.0,2034.5,4.91521]
[1742417807771,4.03910895,2034.9,2034.7,4.91453]
[1742417807965,3.0,2034.8,2034.7,4.91453]
[1742417808126,3.0,2034.8,2034.6,4.91488]
[1742417808966,4.03910895,2034.7,2034.5,10.35974125]
[1742417809463,4.03910895,2034.7,2034.5,10.35071125]
[1742417810342,4.03910895,2034.7,2034.5,15.26578125]
[1742417811573,4.03910895,2034.7,2034.6,4.91497]
[1742417811773,7.03910895,2034.9,2034.8,0.7855]
[1742417812428,7.03910895,2034.9,2034.8,5.69998]
[1742417813280,7.03910895,2034.9,2034.8,0.7855]
[1742417813469,7.03910895,2034.9,2034.8,5.69998]
[1742417813777,7.03910895,2034.9,2034.8,0.7855]
[1742417814474,7.03910895,2034.9,2034.6,5.74383]
[1742417814972,4.03910895,2034.7,2034.6,5.74383]
[1742417815531,4.03910895,2034.7,2034.6,11.18836125]
[1742417817158,7.03910895,2034.9,2034.7,4.91463]
[1742417817671,7.03910895,2034.9,2034.6,11.18831125]
[1742417817873,7.03910895,2034.9,2034.6,11.18829125]
[1742417818533,7.03910895,2034.9,2034.6,11.18828125]
[1742417818734,7.03910895,2034.9,2034.6,11.18826125]
[1742417819232,7.03910895,2034.9,2034.6,16.10309125]
[1742417819563,7.03910895,2034.9,2034.7,4.91467]
[1742417820165,7.03910895,2034.9,2034.6,11.18826125]
[1742417822080,7.03910895,2034.9,2034.6,16.10311125]
[1742417822678,7.03910895,2034.9,2034.7,4.91471]
[1742417823055,7.03910895,2034.9,2034.7,4.91462]
[1742417825775,4.03910895,2034.9,2034.7,4.91462]
[1742417827273,4.03910895,2034.9,2034.7,10.35915125]
[1742417827474,4.03910895,2034.9,2034.7,10.35912125]
[1742417827676,7.03910895,2035.1,2034.9,0.8091]
[1742417828075,7.03910895,2035.1,2034.9,5.72333]
[1742417829289,7.03910895,2035.1,2035.0,4.914]
[1742417829470,7.03910895,2035.1,2035.0,10.35853125]
[1742417830178,4.03910895,2035.1,2035.0,10.35853125]
[1742417830384,4.03910895,2035.4,2035.1,4.91368]
[1742417830769,8.95217895,2035.4,2035.1,4.91362]
[1742417831251,4.03910895,2035.4,2035.1,4.91362]
[1742417831679,26.006,2035.5,2035.0,5.44453125]
[1742417831854,30.04510895,2035.5,2035.3,4.91311]
[1742417832056,30.04510895,2035.5,2035.4,4.91303]
[1742417832383,4.03910895,2035.5,2035.4,4.91303]
[1742417832769,4.03910895,2035.7,2035.5,4.91279]
[1742417833082,4.03910895,2035.7,2035.5,10.35732125]
[1742417833290,7.03910895,2035.7,2035.6,4.91255]
[1742417833775,3.0,2035.7,2035.5,10.35724125]
[1742417833949,4.03910895,2035.6,2035.5,11.18154125]
[1742417834150,4.03910895,2035.6,2035.5,5.44453125]
[1742417834679,4.03910895,2035.6,2035.5,10.35732125]
[1742417834880,4.03910895,2035.6,2035.5,5.44453125]
[1742417835784,4.84350895,2036.0,2035.5,5.44453125]
[1742417835785,26.003,2036.1,2035.7,0.8135]
[1742417836083,3.0,2036.0,2035.7,5.72569]
[1742417836678,7.03910895,2036.0,2035.7,5.72563]
[1742417836879,7.03910895,2036.0,2035.9,4.91183]
[1742417837383,7.03910895,2036.0,2035.8,4.91186]
[1742417839084,7.03910895,2036.0,2035.8,10.35639125]
[1742417839580,4.03910895,2036.0,2035.9,4.91183]
[1742417839880,4.03910895,2036.0,2035.8,10.35639125]
[1742417840061,4.03910895,2036.0,2035.8,15.26830125]
[1742417840582,4.03910895,2036.0,2035.9,4.91183]
[1742417841176,1.16046612,2036.5,2035.9,2.40727213]
[1742417841377,4.03910895,2036.3,2036.1,4.91131]
[1742417841745,4.03910895,2036.2,2036.1,4.91131]
[1742417841953,4.03910895,2036.2,2036.0,10.35612125]
[1742417842683,4.03910895,2036.2,2036.0,5.44453125]
[1742417843186,4.03910895,2036.2,2036.0,10.35610125]
[1742417843887,4.03910895,2036.2,2036.0,5.44453125]
[1742417844198,8.95038895,2036.2,2036.0,5.44453125]
[1742417844496,10.63652485,2036.2,2036.0,5.44453125]
[1742417844680,15.54781485,2036.2,2036.0,5.44453125]
[1742417844888,10.63652485,2036.2,2036.0,5.44453125]
[1742417845082,4.03910895,2036.2,2036.0,5.44453125]
[1742417845798,4.03910895,2036.2,2036.0,10.35611125]
[1742417845961,4.03910895,2036.2,2036.0,5.44453125]
[1742417846307,4.03910895,2036.2,2036.0,10.35604125]
[1742417846455,4.03910895,2036.2,2036.0,11.12775125]
[1742417846661,4.03910895,2036.2,2036.1,4.91135]
[1742417846909,3.0,2036.4,2036.1,5.44453125]
[1742417847192,3.0,2036.6,2036.3,10.59324]
[1742417847392,4.03910895,2036.5,2036.3,5.6825]
[1742417847692,0.8138,2036.7,2036.3,7.76318112]
[1742417847987,4.03910895,2036.7,2036.5,4.91036]
[1742417848157,4.03910895,2036.7,2036.6,4.91014]
[1742417848358,4.03910895,2036.7,2036.5,4.91031]
[1742417848966,4.03910895,2036.7,2036.4,10.35513125]
[1742417849163,4.03910895,2036.5,2036.4,10.35513125]
[1742417849491,4.03910895,2036.5,2036.4,5.44453125]
[1742417849700,1.35380693,2037.2,2036.5,0.7885]
[1742417849908,4.03910895,2037.1,2036.9,4.90921]
[1742417850772,4.03910895,2037.1,2036.8,4.90965]
[1742417850972,4.03910895,2036.9,2036.8,4.90965]
[1742417851181,4.03910895,2036.9,2036.8,6.51490513]
[1742417852012,7.90893,2037.1,2036.8,1.60525513]
[1742417852175,4.03910895,2036.9,2036.7,5.69837]
[1742417853199,3.0,2037.2,2036.8,5.44453125]
[1742417853415,4.03910895,2037.0,2036.8,10.35405125]
[1742417854175,4.03910895,2037.0,2036.8,15.26359125]
[1742417854498,4.03910895,2037.0,2036.8,10.35405125]
[1742417854912,4.03910895,2037.0,2036.8,5.44453125]
[1742417855283,4.90906,2037.1,2036.8,5.44453125]
[1742417855586,4.03910895,2036.9,2036.8,10.35419125]
[1742417855786,4.03910895,2036.9,2036.8,11.95943738]
[1742417856176,4.03910895,2036.9,2036.8,10.35419125]
[1742417856611,4.03910895,2036.9,2036.8,5.44453125]
[1742417856992,8.94852895,2036.9,2036.8,5.44453125]
[1742417857321,4.03910895,2036.9,2036.8,5.44453125]
[1742417860943,8.94852895,2036.9,2036.8,5.44453125]
[1742417861146,5.70166,2036.8,2036.5,5.44453125]
[1742417861345,4.03910895,2036.6,2036.5,10.35485125]
[1742417866942,3.7919,2037.0,2036.7,4.9097]
[1742417867144,4.03910895,2036.9,2036.7,4.9097]
[1742417868338,4.03910895,2036.9,2036.7,9.81946]
[1742417868727,4.03910895,2036.9,2036.7,4.9097]
[1742417869050,4.03910895,2036.9,2036.7,9.81952]
[1742417869564,4.03910895,2036.9,2036.8,4.90966]
[1742417869730,4.03910895,2036.9,2036.8,5.67206]
[1742417870914,4.03910895,2036.9,2036.6,5.6725]
[1742417871266,4.03910895,2036.7,2036.6,4.9101]
[1742417872191,8.94910895,2036.7,2036.3,4.91077]
[1742417872392,4.03910895,2036.6,2036.5,4.91036]
[1742417873481,4.03910895,2036.8,2036.7,4.90983]
[1742417873689,4.03910895,2037.0,2036.8,4.90946]
[1742417873887,4.03910895,2037.0,2036.9,4.90942]
[1742417874594,3.0,2037.1,2036.8,10.60918]
[1742417874891,3.0,2037.1,2036.9,6.06]
[1742417875103,3.0,2037.1,2036.9,10.96938]
[1742417875297,27.18197105,2037.4,2037.1,4.90883]
[1742417875590,3.0,2037.3,2037.1,4.90883]
[1742417875786,3.0,2037.3,2036.9,10.96937]
[1742417875973,3.0,2037.3,2037.0,4.90902]
[1742417876176,26.8107,2037.4,2037.1,9.81762]
[1742417876358,26.002,2037.4,2037.2,4.90861]
[1742417876800,26.002,2037.4,2037.2,9.81719]
[1742417877100,0.01,2037.4,2037.3,4.90845]
[1742417877303,0.01,2037.4,2037.3,10.96845]
[1742417878004,0.01,2037.4,2037.3,6.06]
[1742417878571,3.01,2037.4,2037.3,6.06]
[1742417878790,3.88362,2037.4,2037.3,6.06]
[1742417879000,7.91821,2037.4,2037.3,6.06]